Cogmind - Beta 15 @@@ ROGUE MODE // 2025.06.22 @ 06:26:11 Player: LameThyst Result: Destroyed by G-34 Mercenary with Small Laser Performance ------------- Evolutions (0) 0 Regions Visited (1) 200 Robots Destroyed (8) 40 Value Destroyed (197) 197 Prototype IDs (0) 0 Alien Tech Used (0) 0 Bonus (0) 0 TOTAL SCORE: 437 Bonus ------- None Cogmind --------- Core Integrity 0/250 Matter 262/300 Energy 164/250 System Corruption 0% Temperature Cool (67) Movement Treading (160) Location -10/Materials Parts ------- > --- POWER (1) -------- Ion Engine > --- PROPULSION (2) --- Light Treads Light Treads > --- UTILITY (2) ------ Small Storage Unit > --- WEAPON (2) ------- (None) > --- INVENTORY (8) ---- Aluminum Leg Compact Wheel Compact Wheel ECM Suite Tractor Beam Peak State ------------ > --- POWER ------------ Light Ion Engine > --- PROPULSION ------- Wheel Compact Wheel > --- UTILITY ---------- Small Storage Unit Seismic Detector > --- WEAPON ----------- Medium Laser Medium Laser > --- INVENTORY -------- Ion Engine Light Treads Light Treads Aluminum Leg Aluminum Leg EM Pulse Gun [Rating: 7] Favorites ----------- Power Ion Engine Engine Ion Engine Propulsion Wheel Treads Light Treads Leg Aluminum Leg Wheel Wheel Utility Small Storage Unit Device Seismic Detector Storage Small Storage Unit Weapon Medium Laser Energy Gun Medium Laser Build | -11 -10 ------- Run | Yrd Mat Slots Evolved . | . . Power . | . . Propulsion . | . . Utility . | . . Weapon . | . . Parts Attached 17 | 11 6 Power 3 | 2 1 Engine 3 | 2 1 Core . | . . Reactor . | . . Propulsion 9 | 5 4 Treads 2 | 2 . Leg 3 | . 3 Wheel 4 | 3 1 Hover . | . . Flight . | . . Utility 2 | 2 . Device 1 | 1 . Storage 1 | 1 . Processor . | . . Hackware . | . . Protection . | . . Artifact . | . . Weapon 3 | 2 1 Energy Gun 3 | 2 1 Energy Cannon . | . . Ballistic Gun . | . . Ballistic Cannon . | . . Launcher . | . . Special Weapon . | . . Impact Weapon . | . . Slashing Weapon . | . . Piercing Weapon . | . . Special Melee Weapon . | . . Unidentified Prototypes . | . . Parts Lost 9 | . 9 Power 2 | . 2 Propulsion 3 | . 3 Utility 1 | . 1 Weapon 3 | . 3 Highest Loss Streak 9 | . 9 To Critical Strikes . | . . Average Backups 6 | 4 7 Power . | . . Propulsion 3 | 2 3 Utility 1 | . 1 Weapon . | . . Tool/Special . | . . Unused Backups 5 | 2 3 Power . | . . Propulsion 2 | 2 . Utility 3 | . 3 Weapon . | . . Tool/Special . | . . Average Slot Usage (%) 82 | . 82 Engine 10 | . 10 Treads 2 | . 2 Leg 6 | . 6 Wheel 17 | . 17 Device 9 | . 9 Storage 14 | . 14 Energy Gun 21 | . 21 Peak Build Rating 7 | 7 7 Average Rating 5 | 5 5 On Entrance 3 | . 7 Naked Turns . | . . Heaviest Build 15 | 15 15 Greatest Support 40 | 40 40 Greatest Overweight (x) . | . . Average Overweight (x) . | . . Largest Inventory Capacity 8 | 8 8 Average Capacity 7 | 7 8 Most Carried 8 | 7 8 Average Carried 6 | 5 7 Final Capacity 8 | 8 8 Final Carried 7 | 7 5 Class Distribution -------------------- 100% | Mutant Dominant Class ---------------- Mutant | -10/Materials Resources | -11 -10 ----------- Run | Yrd Mat Matter Collected 415 | 310 105 Remotely . | . . Salvage Created 335 | 131 204 Parts 10 | 5 5 Haulers Intercepted . | . . Recyclers Shooed . | . . Parts Field Recycled . | . . Retrieved Matter . | . . Parts Self-Destructed . | . . Prevented . | . . Kills | -11 -10 ------- Run | Yrd Mat Combat Hostiles Destroyed 5 | . 5 Guns 4 | . 4 Classes Destroyed 4 | 3 1 Worker 1 | 1 . Tunneler 1 | 1 . Recycler 1 | 1 . Grunt 5 | . 5 Best Kill Streak 4 | 2 4 Combat Bots Only 4 | . 4 Max Kills in Single Turn 1 | 1 1 Gunslinging . | . . Exploded . | . . Melee . | . . Uniques/NPCs Destroyed . | . . Combat | -11 -10 -------- Run | Yrd Mat Hostile Shots Fired 109 | . 109 Missed 23 | . 23 Hits 86 | . 86 Projectile 86 | . 86 Critical Strikes 3 | . 3 Damage Taken 1128 | . 1128 Core 256 | . 256 Absorbed by Shields . | . . Core Remaining (%) 100 | 100 . Volleys Fired 45 | 10 35 Largest 2 | 2 2 Hottest 100 | 100 100 Shots Fired 65 | 20 45 Gun 65 | 20 45 Cannon . | . . Launcher . | . . Special . | . . Kinetic . | . . Thermal 61 | 20 41 Explosive . | . . Electromagnetic 4 | . 4 Robot Hit Streak 10 | 6 10 Robot Miss Streak 3 | 3 3 Penetration Max . | . . Secondary Targets 1 | . 1 Max Gunslinging Chain 1 | . 1 Shots Hit Robots 44 | 10 34 Core Hits 16 | 4 12 Critical Kills . | . . Critical Parts Destroyed . | . . Critical Strikes 1 | . 1 Burn 1 | . 1 Melee Attacks . | . . Impact . | . . Slashing . | . . Piercing . | . . Sneak Attacks . | . . Combat Hostiles . | . . Follow-up Attacks . | . . Damage Inflicted 577 | 124 453 Guns 564 | 124 440 Cannons . | . . Explosions . | . . Melee . | . . Ramming 13 | . 13 Kinetic . | . . Thermal 524 | 124 400 Explosive . | . . Electromagnetic 40 | . 40 Impact . | . . Slashing . | . . Piercing . | . . Highest Corruption . | . . Average Corruption . | . . Corruption Purged . | . . Corruption Blocked . | . . Overload Shots . | . . Overflow Damage . | . . Projectiles . | . . Explosions . | . . Melee . | . . Knockbacks . | . . Impact . | . . Kinetic . | . . Secondary . | . . Self-Inflicted Damage . | . . Shots . | . . Rammed 8 | . 8 Targets Rammed 8 | . 8 Kicked . | . . Crushed . | . . Highest Temperature 426 | 117 426 Average Temperature 186 | 56 234 Received Heat Transfer 684 | . 684 Effects 5 | . 5 Shutdowns 1 | . 1 Energy Bleed 1 | . 1 Matter Decay 2 | . 2 Short Circuit 1 | . 1 Siege Activations . | . . Martial Activations . | . . Shielding Activations . | . . Robots Disrupted . | . . Combat Hostiles . | . . Robots Corrupted . | . . Combat Hostiles . | . . Parts Fried . | . . Impact Corruptions . | . . Robots Melted 1 | . 1 Combat Hostiles 1 | . 1 Parts Melted 6 | . 6 Heat Transferred 1628 | 370 1258 Parts Sabotaged . | . . Parts Stolen . | . . Parts Stripped . | . . Power Chain Reactions . | . . Alert | -11 -10 ------- Run | Yrd Mat Maximum Alert Level . | . . Low Security (%) 100 | 100 100 Level 1 . | . . Level 2 . | . . Level 3 . | . . Level 4 . | . . Level 5 . | . . High Security . | . . Max Security . | . . Peak Influence 65 | 5 65 Initial . | . . Average 14 | . 25 Influence Increases 222 | 15 207 Destroy 0b10 Robot/C 100 | . 100 Destroy 0b10 Robot/NC 15 | 15 . Destroy Leader 30 | . 30 Trap Triggered on 0b10 10 | . 10 Successful Hack 7 | . 7 Lose Combat Pursuer 60 | . 60 Influence Decreases 202 | 15 187 Time Decay 112 | 15 97 Lost Part 90 | . 90 Squads Dispatched 2 | . 2 Investigation 1 | . 1 Extermination . | . . Reinforcement 1 | . 1 Assault . | . . Garrison . | . . Intercept . | . . Searches Triggered . | . . Construction Impeded . | . . Haulers Reinforced . | . . Active Scanning Responses . | . . Cargo Convoy Interrupts . | . . Stealth | -11 -10 --------- Run | Yrd Mat Distress Signals . | . . Communications Jammed . | . . Distress Signals . | . . Times Spotted 14 | . 14 Peak Tracking Total 6 | . 6 Tactical Retreats 3 | . 3 Traps | -11 -10 ------- Run | Yrd Mat Traps Triggered . | . . Indirectly . | . . Trap Hack Attempts . | . . Triggered . | . . Disarmed . | . . Reprogrammed 6 | . 6 Reused 1 | . 1 Traps Extracted . | . . Installed . | . . Triggered 1 | . 1 Machines | -11 -10 ---------- Run | Yrd Mat Machines Disabled . | . . Max in Single Turn . | . . Machines Repaired . | . . Machines Dismantled . | . . Machines Sabotaged . | . . Overloaded Fab Kills . | . . Hacking | -11 -10 --------- Run | Yrd Mat Machines Accessed 1 | . 1 Terminals 1 | . 1 Fabricators . | . . Repair Stations . | . . Recycling Units . | . . Scanalyzers . | . . Garrison Access . | . . Total Hacks 4 | . 4 Successful 3 | . 3 Failed 1 | . 1 Catastrophic 1 | . 1 Database Lockouts . | . . Manual . | . . Terminals 4 | . 4 Fabricators . | . . Repair Stations . | . . Recycling Units . | . . Scanalyzers . | . . Garrison Access . | . . Terminal Hacks 3 | . 3 Locate Traps 1 | . 1 Reprogram Traps 1 | . 1 Maintenance Status 1 | . 1 Fabricator Hacks . | . . Repair Station Hacks . | . . Recycling Unit Hacks . | . . Scanalyzer . | . . Garrison Access Hacks . | . . Unauthorized Hacks . | . . Terminals . | . . Fabricators . | . . Repair Stations . | . . Recycling Units . | . . Scanalyzers . | . . Garrison Access . | . . Data Cores Recovered . | . . Used . | . . Hacking Detections 1 | . 1 Full Trace Events . | . . Feedback Events . | . . Feedback Blocked . | . . Robot Schematics Acquired . | . . Robots Built . | . . Authchips . | . . Time . | . . Total Robot Build Rating . | . . Part Schematics Acquired . | . . Parts Built . | . . Authchips . | . . Time . | . . Total Part Build Rating . | . . Parts Repaired . | . . Time . | . . Parts Recycled . | . . Recycled Matter . | . . Retrieved Matter . | . . Retrieved Components . | . . Parts Scanalyzed . | . . Part Schematics Acquired . | . . Parts Damaged . | . . Bothacking | -11 -10 ------------ Run | Yrd Mat Used RIF Installer . | . . Robots Hacked . | . . Non-combat . | . . Combat . | . . Robot Hacks Applied . | . . Relay Couplers Released . | . . Fabnet Peak Effective % . | . . Robots Rewired . | . . Allies Hacked . | . . Hacks Repelled . | . . Allies | -11 -10 -------- Run | Yrd Mat Total Allies . | . . Largest Group . | . . Highest-Rated Group . | . . Highest-Rated Ally . | . . Total Orders . | . . Ally Attacks . | . . Total Damage . | . . Kills . | . . Allies Corrupted . | . . Allies Melted . | . . Intel | -11 -10 ------- Run | Yrd Mat Active Infowar (turns) 215 | 83 132 Seismic 215 | 83 132 Robot Analysis Total . | . . Derelict Logs Recovered . | . . Drone Launches . | . . Drone Recoveries . | . . Exploration | -11 -10 ------------- Run | Yrd Mat Turns Passed 373 | 168 205 Spaces Moved 222 | 111 111 Core 8 | 8 . Treads 20 | 16 4 Legs 4 | . 4 Wheels 190 | 87 103 Hover . | . . Flight . | . . Fastest Speed 50 | 50 80 Average Speed 92 | 101 84 Slowest Speed 160 | 160 160 Overloaded Moves . | . . Propulsion Burnouts . | . . Robots Hopped . | . . Potential Cave-ins . | . . Cave-ins Triggered . | . . Exploration Rate (%) 14 | 7 21 Regions Visited 1 Branch Regions . Pre-discovered Areas . | . . Known Exits Taken . | . . Unknown Exits Taken 1 | 1 . Scrap Searched . | . . Spaces Dug . | . . Terrain Destroyed . | . . Melee . | . . Projectile . | . . AOE . | . . Terrain Rammed . | . . Walls Destroyed . | . . Machines Disabled . | . . Actions | -11 -10 --------- Run | Yrd Mat Total 314 | 142 172 Wait 1 | . 1 Move 221 | 110 111 Hop . | . . Pick Up 12 | 9 3 Fast Attach 10 | 7 3 Attach 4 | . 4 Detach . | . . Swap 8 | 4 4 Drop 5 | 2 3 Fire 45 | 10 35 Melee . | . . Ram . | . . Kick . | . . Crush 8 | . 8 Escape Stasis . | . . Rewire . | . . Trap . | . . Miscellaneous . | . . Route ------- -11/Scrapyard -10/Materials History --------- Turn | Location | Event 3 | -11/Scrapyard | Discovered new exit (range 15) 169 | -11/Scrapyard | Entered Materials 316 | -10/Materials | Core integrity fell below 50% 344 | -10/Materials | Core integrity fell below 20% 374 | -10/Materials | Destroyed by G-34 Mercenary with Small Laser Last Messages --------------- 00326_ Power failure, Lgt. Ion Engine shutdown. 00327_ Lgt. Ion Engine destroyed. 00327_ Ion Engine melted. 00327_ G-34 Mercenary destroyed. 00329_ Acquired Aluminum Leg. 00339_ Aluminum Leg destroyed. 00341_ Overheating: Matter decay (-58). 00342_ Aluminum Leg broken. 00342_ Overheating: Short circuit. 00342_ Med. Laser destroyed. 00344_ Overheating: Matter decay (-43). 00348_ G-34 Mercenary IFF system glitched. 00351_ EM Pulse Gun destroyed. 00353_ Acquired 80 matter. 00356_ Acquired Ion Engine. 00359_ Slammed into G-34 Mercenary. 00363_ Neutrino Reactor explodes. 00363_ G-47 Trooper destroyed. 00363_ Door malfunctions. 00363_ Slammed into G-34 Mercenary. Map ----- +----------------------------------------------------+ | | | | | | | | | | | | | | | | | | | | | ?????????????##############??????? | | ?????????????#! !! #??????? | | ?????????????# ! """ #??????? | | ??????######## ! """ #??????? | | ???#### # """ #??????? | | ???# # "" # ! #???#### | | ???# # Y" #####+############ | | ???# + "" #### + " | | ???# # / ########### " | | ???# # ### #??######## | | ???# ########?# #??# # | | ???# ########## #??# """ # | | ???# #??# """ ##+# | | ???# #### """ ## # | | ???#%= r + ## # | | ?###/####@g #### ## # | | ?# % # #??####+#### # | | ?# = / #### % | | ?# # t | | ?# # ######## | | ?# ###### ##??????# ####### | | ?# #????# #???????# #?????? | | ?########????# #???????# #?????? | | ??????????????/????????# #?????? | | ???????????????????????# #?????? | | ???????????????????????# #?????? | | ??????????????????????? #?????? | | ?????????????????????? #?????? | | ?????????????????????? #?????? | | ????????????????????? #?????? | | ???????????????????? ?????? | | ???????????????????? ?????? | | ??????????????????? ?????? | | ??????????????????? ?????? | | ??????????????????? ?????? | | ??????????????????? ????? | | ????????????????????? ????? | | ??????????????????????? ?????? | | ?????????????????????????????????? | | ?????????????????????????????????? | +----------------------------------------------------+ Best States ------------- Heat Dissipation 25 Energy Generation 10 Energy Capacity 250 Matter Stores 300 Matter Capacity 300 Sight Range 16 Terrain Scan Density 10 Evasion (%) 44 Recoil Reduction 2 Item Schematics ----------------- None Robot Schematics ------------------ None Fabricated ------------ Nothing Repaired ---------- Nothing Alien Tech Used ----------------- None Achievements -------------- None Challenges ------------ None Game ------ Seed ExoskeletonSystemChronowheel Manual? 0 Play Time 00:08:35 Cumulative 11.5 hours Start 2025.06.22 @ 06:18:30 End 2025.06.22 @ 06:26:11 Sessions 1 Manual Loads 0 Difficulty Rogue Special Mode None Game No. 15 Rogue 15 Adventurer 0 Explorer 0 Win Type - Total 0 Types 0/0/0/0/0/0/0/0/0/0 Lore% 4 Gallery% 17 Achievement% 14 Wizard Run 0 Options --------- Layout 1 ASCII 0 Keyboard 0 Movement Mouse Keybinds 0 Fullscreen 2 Font 48/Smallcaps Map View 50x35 Zoom Use 0% Tactical HUD 1 Map Filters NONE Filters NONE Steam 0 RUN: 9e7e0286-a079-48e9-9593-281e33cfd84e